fUSD/lending_fUSD_20240212
["ID","MTS","AMOUNT","RATE_DAILY","PERIOD"]
[313796552,1707727838167,-155.98990218,0.00022613,2]
[313796553,1707727838180,-774.34270904,0.00022613,2]
[313796554,1707727838189,-219.0651034,0.00022613,2]
[313796555,1707727838199,-500.0,0.00022613,2]
[313796556,1707727838208,-1981.75,0.00022613,2]
[313796557,1707727838217,-500.0,0.00022613,2]
[313796558,1707727838226,-500.0,0.00022613,2]
[313796559,1707727838235,-7224.26,0.00022613,2]
[313796560,1707727838245,-588.75,0.00022613,2]
[313796561,1707727838253,-500.0,0.00022613,2]
[313796562,1707727838263,-1861.3,0.00022613,2]
[313796563,1707727838272,-2756.98,0.00022613,2]
[313796564,1707727838282,-500.0,0.00022613,2]
[313796565,1707727838291,-757.91,0.00022613,2]
[313796567,1707727838304,-500.0,0.00022613,2]
[313796569,1707727838314,-650.21,0.00022613,2]
[313796571,1707727838323,-500.0,0.00022613,2]
[313796573,1707727838333,-500.0,0.00022613,2]
[313796575,1707727838342,-1815.48,0.00022613,2]
[313796577,1707727838351,-500.0,0.00022613,2]
[313796578,1707727838361,-11981.09,0.00022613,2]
[313796582,1707727838370,-500.0,0.00022613,2]
[313796585,1707727838380,-1491.11892191,0.00022613,2]
[313796590,1707727838423,-280.22179706,0.00022613,2]
[313796594,1707727838452,-548.43928103,0.00022613,2]
[313796596,1707727838461,-457.08718856,0.00022613,2]
[313796598,1707727838473,-42.91281144,0.00022613,2]
[313796600,1707727838482,-381.97027394,0.00022613,2]
[313796663,1707727841281,-118.02972606,0.00022613,2]
[313796664,1707727841290,-500.0,0.00022613,2]
[313796665,1707727841300,-329.27300286,0.00022613,2]
[313796728,1707727844634,-767.38699714,0.00022613,2]
[313796729,1707727844643,-500.0,0.00022613,2]
[313796730,1707727844652,-500.0,0.00022613,2]
[313796731,1707727844661,-500.0,0.00022613,2]
[313796732,1707727844670,-1117.49097241,0.00022613,2]
[313796733,1707727844693,-637.74902759,0.00022613,2]
[313796734,1707727844702,-500.0,0.00022613,2]
[313796735,1707727844711,-500.0,0.00022613,2]
[313796736,1707727844720,-2864.76,0.00022613,2]
[313796737,1707727844729,-869.71,0.00022613,2]
[313796738,1707727844738,-500.0,0.00022613,2]
[313796739,1707727844747,-500.0,0.00022613,2]
[313796740,1707727844756,-1060.26,0.00022613,2]
[313796741,1707727844765,-500.0,0.00022613,2]
[313796742,1707727844775,-1980.5,0.00022613,2]
[313796743,1707727844783,-500.0,0.00022613,2]
[313796744,1707727844792,-778.86,0.00022613,2]
[313796745,1707727844801,-2093.130218,0.00022614,3]
[313796746,1707727844810,-2591.21700003,0.00022614,2]
[313796747,1707727844819,-155.4152334,0.00022614,2]
[313796748,1707727844828,-156.00479395,0.00022614,2]
[313796749,1707727844837,-156.12080735,0.00022614,2]
[313796750,1707727844848,-249.88938403,0.00022614,2]
[313796751,1707727844856,-294.25360057,0.00022614,2]
[313796752,1707727844865,-632.46168054,0.00022614,2]
[313796753,1707727844875,-156.14677915,0.00022614,2]
[313796754,1707727844883,-1481.48301068,0.00022614,2]
[313796755,1707727844892,-204.77506964,0.00022614,2]
[313796756,1707727844901,-391.00097642,0.00022614,2]
[313796757,1707727844910,-1064.43200738,0.00022614,2]
[313796759,1707727844919,-4670.40946995,0.00022614,2]
[313796760,1707727844928,-481.080241,0.00022614,2]
[313796761,1707727844937,-264.86689415,0.00022614,2]
[313796762,1707727844947,-10443.22553039,0.00022614,2]
[313796763,1707727844956,-995.22447845,0.00022614,2]
[313796764,1707727844965,-233.31131748,0.00022614,2]
[313796765,1707727844974,-163.98940914,0.00022614,2]
[313796767,1707727844983,-158.34814295,0.00022614,2]
[313796769,1707727844992,-216.44378328,0.00022614,2]
[313796770,1707727845001,-221.43112762,0.00022614,2]
[313796771,1707727845010,-389.21230668,0.00022614,2]
[313796772,1707727845019,-156.03034355,0.00022614,2]
[313796773,1707727845028,-156.75729693,0.00022614,2]
[313796774,1707727845037,-279.94615861,0.00022614,2]
[313796775,1707727845046,-500.0,0.00022614,2]
[313796776,1707727845055,-542.31,0.00022614,2]
[313796777,1707727845064,-598.87,0.00022614,2]
[313796778,1707727845073,-559.26,0.00022614,2]
[313796779,1707727845082,-898.8,0.00022614,2]
[313796780,1707727845318,-682.94,0.00022614,2]
[313796781,1707727845327,-649.09,0.00022614,2]
[313796782,1707727845337,-536.26,0.00022614,2]
[313796783,1707727845347,-500.0,0.00022614,2]
[313796784,1707727845357,-689.32,0.00022614,2]
[313796785,1707727845366,-804.91,0.00022614,2]
[313796786,1707727845376,-563.16,0.00022614,2]
[313796787,1707727845386,-500.0,0.00022614,2]
[313796788,1707727845395,-760.83,0.00022614,2]
[313796789,1707727845405,-1028.24,0.00022614,2]
[313796790,1707727845414,-850.37,0.00022614,2]
[313796791,1707727845423,-1009.01,0.00022614,2]
[313796792,1707727845433,-952.13,0.00022614,2]
[313796793,1707727845445,-500.0,0.00022614,2]
[313796794,1707727845455,-720.55,0.00022614,2]
[313796795,1707727845464,-500.0,0.00022614,2]
[313796796,1707727845474,-500.0,0.00022614,2]
[313796797,1707727845483,-500.0,0.00022614,2]
[313796798,1707727845492,-500.0,0.00022614,2]
[313796799,1707727845502,-927.01,0.00022614,2]
[313796800,1707727845512,-500.0,0.00022614,2]
[313796801,1707727845521,-500.0,0.00022614,2]
[313796802,1707727845532,-500.0,0.00022614,2]
[313796803,1707727845541,-1332.38,0.00022614,2]
[313796804,1707727845550,-1246.5,0.00022614,2]
[313796805,1707727845560,-934.01,0.00022614,2]
[313796806,1707727845569,-1126.69,0.00022614,2]
[313796807,1707727845579,-546.47,0.00022614,2]
[313796808,1707727845589,-851.63,0.00022614,2]
[313796809,1707727845600,-500.0,0.00022614,2]
[313796810,1707727845609,-1421.06,0.00022614,2]
[313796811,1707727845619,-1277.92,0.00022614,2]
[313796812,1707727845628,-500.0,0.00022614,2]
[313796813,1707727845637,-644.69,0.00022614,2]
[313796814,1707727845647,-1106.44,0.00022614,2]
[313796815,1707727845656,-500.0,0.00022614,2]
[313796816,1707727845665,-500.0,0.00022614,2]
[313796818,1707727845675,-500.0,0.00022614,2]
[313796819,1707727845684,-750.8,0.00022614,2]
[313796820,1707727845693,-500.0,0.00022614,2]
[313796821,1707727845702,-500.0,0.00022614,2]
[313796822,1707727845711,-500.0,0.00022614,2]
[313796823,1707727845720,-500.0,0.00022614,2]
[313796824,1707727845729,-694.02,0.00022614,2]
[313796825,1707727845738,-500.0,0.00022614,2]
[313796826,1707727845748,-500.0,0.00022614,2]
[313796827,1707727845756,-500.0,0.00022614,2]
[313796828,1707727845766,-500.0,0.00022614,2]
[313796829,1707727845786,-500.0,0.00022614,2]
[313796830,1707727845797,-500.0,0.00022614,2]
[313796831,1707727845807,-500.0,0.00022614,2]
[313796832,1707727845817,-500.0,0.00022614,2]
[313796833,1707727845827,-500.0,0.00022614,2]
[313796834,1707727845837,-500.0,0.00022614,2]
[313796835,1707727845847,-591.5,0.00022614,2]
[313796836,1707727845859,-500.0,0.00022614,2]
[313796837,1707727845870,-500.0,0.00022614,2]
[313796838,1707727845879,-577.29,0.00022614,2]
[313796839,1707727845889,-577.11,0.00022614,2]
[313796840,1707727845900,-500.0,0.00022614,2]
[313796841,1707727845909,-354.30284465,0.00022614,2]
[313796842,1707727845919,-713.23,0.00022614,2]
[313796843,1707727845928,-1122.57,0.00022614,2]
[313796844,1707727845938,-500.0,0.00022614,2]
[313796845,1707727845947,-546.02,0.00022614,2]
[313796846,1707727845957,-500.0,0.00022614,2]
[313796847,1707727845966,-500.0,0.00022614,2]
[313796848,1707727845975,-500.0,0.00022614,2]
[313796850,1707727845985,-500.0,0.00022614,2]
[313796852,1707727845994,-500.0,0.00022614,2]
[313796854,1707727846004,-500.0,0.00022614,2]
[313796856,1707727846013,-4136.36,0.00022614,2]
[313796858,1707727846023,-500.0,0.00022614,2]
[313796860,1707727846032,-500.0,0.00022614,2]
[313796862,1707727846042,-532.5949996,0.00022614,2]
[313796864,1707727846051,-1098.94,0.00022614,2]
[313796866,1707727846061,-500.0,0.00022614,2]
[313796868,1707727846070,-522.40185531,0.00022614,2]
[313796870,1707727846079,-500.0,0.00022614,2]
[313796872,1707727846088,-375.29514465,0.00022614,2]
[313796874,1707727846098,-500.0,0.00022614,2]
[313796875,1707727846108,-500.0,0.00022614,2]
[313796876,1707727846117,-500.0,0.00022614,2]
[313796877,1707727846127,-500.0,0.00022614,2]
[313796878,1707727846137,-5644.93,0.00022614,2]
[313796879,1707727846146,-532.71146932,0.00022614,2]
[313796880,1707727846155,-556.33,0.00022614,2]
[313796881,1707727846165,-500.0,0.00022614,2]
[313796882,1707727846174,-500.0,0.00022614,2]
[313796883,1707727846184,-500.0,0.00022614,2]
[313796884,1707727846193,-500.0,0.00022614,2]
[313796885,1707727846202,-500.0,0.00022614,2]
[313796886,1707727846216,-7106.82,0.00022614,2]
[313796887,1707727846225,-500.0,0.00022614,2]
[313796888,1707727846235,-1240.29,0.00022614,2]
[313796889,1707727846244,-500.0,0.00022614,2]
[313796891,1707727846254,-416.3467053,0.00022614,2]
[313796893,1707727846263,-500.0,0.00022614,2]
[313796895,1707727846273,-209.418737,0.00022614,2]
[313796896,1707727846283,-500.0,0.00022614,2]
[313796898,1707727846293,-500.0,0.00022614,2]
[313796900,1707727846303,-500.0,0.00022614,2]
[313796902,1707727846314,-500.0,0.00022614,2]
[313796904,1707727846324,-500.0,0.00022614,2]
[313796906,1707727846333,-500.0,0.00022614,2]
[313796909,1707727846343,-1172.28,0.00022614,2]
[313796912,1707727846353,-417.54278837,0.00022614,2]
[313796914,1707727846363,-500.0,0.00022614,2]
[313796916,1707727846372,-500.0,0.00022614,2]
[313796918,1707727846382,-2409.51,0.00022614,2]
[313796920,1707727846391,-500.0,0.00022614,2]
[313796922,1707727846401,-546.83975775,0.00022614,2]
[313796923,1707727846410,-500.0,0.00022614,2]
[313796925,1707727846420,-2334.5,0.00022614,2]
[313796927,1707727846429,-500.0,0.00022614,2]
[313796929,1707727846442,-508.47,0.00022614,2]
[313796931,1707727846452,-500.0,0.00022614,2]
[313796933,1707727846461,-500.0,0.00022614,2]
[313796934,1707727846471,-925.86,0.00022614,2]
[313796935,1707727846482,-2109.26,0.00022614,2]
[313796936,1707727846492,-1446.23,0.00022614,2]
[313796937,1707727846502,-500.0,0.00022614,2]
[313796938,1707727846512,-1259.17,0.00022614,2]
[313796939,1707727846524,-500.0,0.00022614,2]
[313796940,1707727846534,-500.0,0.00022614,2]
[313796941,1707727846544,-597.15,0.00022614,2]
[313796942,1707727846554,-500.0,0.00022614,2]
[313796943,1707727846563,-500.0,0.00022614,2]
[313796944,1707727846573,-500.0,0.00022614,2]
[313796945,1707727846583,-719.74,0.00022614,2]
[313796946,1707727846593,-500.0,0.00022614,2]
[313796947,1707727846603,-500.0,0.00022614,2]
[313796948,1707727846614,-500.0,0.00022614,2]
[313796949,1707727846623,-500.0,0.00022614,2]
[313796950,1707727846632,-500.0,0.00022614,2]
[313796951,1707727846642,-500.0,0.00022614,2]
[313796952,1707727846651,-500.0,0.00022614,2]
[313796953,1707727846664,-2083.39,0.00022614,2]
[313796954,1707727846674,-6912.18,0.00022614,2]
[313796955,1707727846684,-500.0,0.00022614,2]
[313796956,1707727846693,-500.0,0.00022614,2]
[313796957,1707727846703,-500.0,0.00022614,2]
[313796958,1707727846713,-500.0,0.00022614,2]
[313796959,1707727846723,-3418.18,0.00022614,2]
[313796961,1707727846732,-500.0,0.00022614,2]
[313796963,1707727846742,-500.0,0.00022614,2]
[313796964,1707727846752,-788.96,0.00022614,2]
[313796966,1707727846761,-500.0,0.00022614,2]
[313796968,1707727846771,-500.0,0.00022614,2]
[313796970,1707727846780,-500.0,0.00022614,2]
[313796972,1707727846792,-500.0,0.00022614,2]
[313796974,1707727846801,-500.0,0.00022614,2]
[313796976,1707727846810,-3269.7,0.00022614,2]
[313796978,1707727846820,-1486.78,0.00022614,2]
[313796980,1707727846829,-3269.7,0.00022614,2]
[313796982,1707727846839,-3269.7,0.00022614,2]
[313796984,1707727846849,-500.0,0.00022614,2]
[313796986,1707727846858,-1840.43538765,0.00022614,2]
[313796990,1707727846895,-500.0,0.00022613,2]
[313796992,1707727846904,-1429.26461235,0.00022614,2]
[313796994,1707727846914,-722.99,0.00022614,2]
[313796996,1707727846926,-3269.7,0.00022614,2]
[313796998,1707727846936,-3269.7,0.00022614,2]
[313796999,1707727846946,-3269.7,0.00022614,2]
[313797000,1707727846955,-3269.7,0.00022614,2]
[313797001,1707727846965,-500.0,0.00022614,2]
[313797002,1707727846975,-3269.7,0.00022614,2]
[313797003,1707727846984,-3269.7,0.00022614,2]
[313797004,1707727846994,-3269.7,0.00022614,2]
[313797005,1707727847003,-3269.7,0.00022614,2]
[313797006,1707727847013,-3269.7,0.00022614,2]
[313797007,1707727847022,-3269.7,0.00022614,2]
[313797008,1707727847031,-3269.7,0.00022614,2]
[313797009,1707727847041,-500.0,0.00022614,2]
[313797010,1707727847051,-3269.7,0.00022614,2]
[313797011,1707727847061,-3269.7,0.00022614,2]
[313797013,1707727847071,-3269.7,0.00022614,2]
[313797014,1707727847081,-3269.7,0.00022614,2]
[313797016,1707727847091,-3269.7,0.00022614,2]
[313797018,1707727847101,-3269.7,0.00022614,2]
[313797020,1707727847110,-3269.7,0.00022614,2]
[313797022,1707727847120,-3269.7,0.00022614,2]
[313797024,1707727847129,-3269.92466056,0.00022614,2]
[313797026,1707727847138,-772.9,0.00022614,2]
[313797028,1707727847147,-500.0,0.00022614,2]
[313797030,1707727847157,-514.97,0.00022614,2]
[313797032,1707727847167,-1543.66,0.00022614,2]
[313797034,1707727847176,-500.0,0.00022614,2]
[313797036,1707727847185,-500.0,0.00022614,2]
[313797038,1707727847195,-1225.76,0.00022614,2]
[313797040,1707727847204,-500.0,0.00022614,2]
[313797042,1707727847214,-500.0,0.00022614,2]
[313797044,1707727847223,-500.0,0.00022614,2]
[313797046,1707727847233,-500.0,0.00022614,2]
[313797048,1707727847242,-500.0,0.00022614,2]
[313797051,1707727847252,-500.0,0.00022614,2]
[313797053,1707727847262,-2027.22,0.00022614,2]
[313797055,1707727847271,-3387.12,0.00022614,2]
[313797057,1707727847281,-500.0,0.00022614,2]
[313797059,1707727847290,-500.0,0.00022614,2]
[313797061,1707727847300,-3159.97,0.00022614,2]
[313797063,1707727847309,-592.25,0.00022614,2]
[313797065,1707727847319,-500.0,0.00022614,2]
[313797067,1707727847328,-772.7,0.00022614,2]
[313797069,1707727847338,-256.78558013,0.00022614,2]
[313797071,1707727847348,-501.14,0.00022614,2]
[313797073,1707727847358,-500.0,0.00022614,2]
[313797075,1707727847368,-2285.66,0.00022614,2]
[313797077,1707727847378,-2483.89,0.00022614,2]
[313797079,1707727847387,-500.0,0.00022614,2]
[313797081,1707727847397,-500.0,0.00022614,2]
[313797083,1707727847406,-500.0,0.00022614,2]
[313797085,1707727847416,-500.0,0.00022614,2]
[313797087,1707727847427,-1793.08,0.00022614,2]
[313797089,1707727847440,-500.0,0.00022614,2]
[313797091,1707727847450,-1473.84,0.00022614,2]
[313797094,1707727847460,-500.0,0.00022614,2]
[313797096,1707727847469,-2070.64,0.00022614,2]
[313797098,1707727847480,-563.25,0.00022614,2]
[313797100,1707727847490,-500.0,0.00022614,2]
[313797102,1707727847500,-500.0,0.00022614,2]
[313797104,1707727847509,-562.41291353,0.00022614,2]
[313797106,1707727847520,-1021.68,0.00022614,2]
[313797108,1707727847530,-957.04,0.00022614,2]
[313797110,1707727847539,-500.0,0.00022614,2]
[313797112,1707727847549,-884.23,0.00022614,2]
[313797114,1707727847560,-500.0,0.00022614,2]
[313797116,1707727847569,-500.0,0.00022614,2]
[313797118,1707727847579,-500.0,0.00022614,2]
[313797120,1707727847588,-541.63,0.00022614,2]
[313797122,1707727847599,-843.7,0.00022614,2]
[313797124,1707727847609,-500.0,0.00022614,2]
[313797126,1707727847618,-698.3,0.00022614,2]
[313797128,1707727847628,-514.90137385,0.00022614,2]
[313797130,1707727847638,-500.0,0.00022614,2]
[313797133,1707727847647,-500.0,0.00022614,2]
[313797135,1707727847657,-835.83,0.00022614,2]
[313797137,1707727847666,-500.0,0.00022614,2]
[313797139,1707727847675,-637.39690317,0.00022614,2]
[313797141,1707727847684,-500.0,0.00022614,2]
[313797143,1707727847693,-500.0,0.00022614,2]
[313797145,1707727847703,-1774.0,0.00022614,2]
[313797147,1707727847712,-1308.64,0.00022614,2]
[313797149,1707727847721,-868.66,0.00022614,2]
[313797152,1707727847739,-500.0,0.00022614,2]
[313797154,1707727847750,-627.83,0.00022614,2]
[313797156,1707727847759,-500.0,0.00022614,2]
[313797158,1707727847769,-500.0,0.00022614,2]
[313797160,1707727847778,-615.82,0.00022614,2]
[313797162,1707727847788,-500.0,0.00022614,2]
[313797164,1707727847797,-521.93911439,0.00022614,2]
[313797166,1707727847807,-1691.34,0.00022614,2]
[313797168,1707727847817,-500.0,0.00022614,2]
[313797170,1707727847826,-500.0,0.00022614,2]
[313797172,1707727847836,-500.0,0.00022614,2]
[313797173,1707727847846,-500.0,0.00022614,2]
[313797174,1707727847856,-528.28296502,0.00022614,2]
[313797175,1707727847866,-3586.4,0.00022614,2]
[313797176,1707727847875,-500.0,0.00022614,2]
[313797177,1707727847884,-500.0,0.00022614,2]
[313797178,1707727847894,-180.44502361,0.00022614,2]
[313797179,1707727847904,-1945.13,0.00022614,2]
[313797180,1707727847913,-500.0,0.00022614,2]
[313797181,1707727847922,-2188.03,0.00022614,2]
[313797182,1707727847932,-500.0,0.00022614,2]
[313797183,1707727847941,-860.55,0.00022614,2]
[313797184,1707727847950,-3307.34,0.00022614,2]
[313797185,1707727847960,-500.0,0.00022614,2]
[313797186,1707727847970,-500.0,0.00022614,2]
[313797187,1707727847979,-1820.31,0.00022614,2]
[313797188,1707727847989,-500.0,0.00022614,2]
[313797189,1707727847998,-500.0,0.00022614,2]
[313797190,1707727848008,-597.85491177,0.00022614,2]
[313797191,1707727848017,-3025.75,0.00022614,2]
[313797192,1707727848027,-951.53,0.00022614,2]
[313797193,1707727848036,-500.0,0.00022614,2]
[313797194,1707727848046,-235.94910884,0.00022614,2]
[313797195,1707727848055,-522.73471614,0.00022614,2]
[313797196,1707727848065,-1191.38,0.00022614,2]
[313797197,1707727848074,-500.0,0.00022614,2]
[313797198,1707727848084,-3534.39,0.00022614,2]
[313797199,1707727848094,-937.0,0.00022614,2]
[313797200,1707727848105,-4336.66,0.00022614,2]
[313797201,1707727848114,-500.0,0.00022614,2]
[313797202,1707727848123,-778.08,0.00022614,2]
[313797203,1707727848133,-500.0,0.00022614,2]
[313797204,1707727848142,-500.0,0.00022614,2]
[313797205,1707727848151,-836.61,0.00022614,2]
[313797206,1707727848161,-3441.96,0.00022614,2]
[313797207,1707727848170,-500.0,0.00022614,2]
[313797208,1707727848180,-500.0,0.00022614,2]
[313797209,1707727848189,-500.0,0.00022614,2]
[313797210,1707727848198,-586.99,0.00022614,2]
[313797211,1707727848208,-578.15,0.00022614,2]
[313797212,1707727848217,-500.0,0.00022614,2]
[313797213,1707727848227,-3562.82,0.00022614,2]
[313797214,1707727848237,-500.0,0.00022614,2]
[313797215,1707727848246,-500.0,0.00022614,2]
[313797216,1707727848259,-500.0,0.00022614,2]
[313797217,1707727848268,-7817.91,0.00022614,2]
[313797218,1707727848278,-500.0,0.00022614,2]
[313797219,1707727848287,-500.0,0.00022614,2]
[313797220,1707727848297,-1686.28,0.00022614,2]
[313797221,1707727848307,-1047.51,0.00022614,2]
[313797222,1707727848317,-500.0,0.00022614,2]
[313797223,1707727848326,-500.0,0.00022614,2]
[313797224,1707727848336,-500.0,0.00022614,2]
[313797225,1707727848345,-500.0,0.00022614,2]
[313797226,1707727848356,-500.0,0.00022614,2]
[313797227,1707727848365,-500.0,0.00022614,2]
[313797228,1707727848374,-500.0,0.00022614,2]
[313797229,1707727848384,-789.02,0.00022614,2]
[313797230,1707727848394,-532.35569174,0.00022614,2]
[313797231,1707727848404,-500.0,0.00022615,2]
[313797232,1707727848413,-500.0,0.00022615,2]
[313797233,1707727848423,-500.0,0.00022615,2]
[313797234,1707727848433,-500.0,0.00022615,2]
[313797235,1707727848445,-500.0,0.00022615,2]
[313797236,1707727848455,-500.0,0.00022615,2]
[313797237,1707727848465,-500.0,0.00022615,2]
[313797238,1707727848475,-500.0,0.00022615,2]
[313797239,1707727848485,-500.0,0.00022615,2]
[313797240,1707727848494,-516.77903381,0.00022615,2]
[313797241,1707727848504,-500.0,0.00022615,2]
[313797242,1707727848514,-500.0,0.00022615,2]
[313797243,1707727848524,-500.0,0.00022615,2]
[313797244,1707727848534,-518.30057114,0.00022615,2]
[313797245,1707727848544,-500.0,0.00022615,2]
[313797246,1707727848554,-500.0,0.00022615,2]
[313797247,1707727848564,-500.0,0.00022615,2]
[313797248,1707727848574,-500.0,0.00022615,2]
[313797249,1707727848584,-500.0,0.00022615,2]
[313797250,1707727848593,-500.0,0.00022615,2]
[313797251,1707727848604,-500.0,0.00022615,2]
[313797252,1707727848614,-500.0,0.00022615,2]
[313797253,1707727848623,-500.0,0.00022615,2]
[313797254,1707727848633,-500.0,0.00022615,2]
[313797255,1707727848642,-500.0,0.00022615,2]
[313797256,1707727848652,-500.0,0.00022615,2]
[313797257,1707727848661,-500.0,0.00022615,2]
[313797258,1707727848672,-500.0,0.00022615,2]
[313797259,1707727848681,-501.31,0.00022615,2]
[313797260,1707727848690,-500.0,0.00022615,2]
[313797261,1707727848700,-500.0,0.00022615,2]
[313797262,1707727848709,-500.0,0.00022615,2]
[313797263,1707727848718,-500.0,0.00022615,2]
[313797264,1707727848728,-500.0,0.00022615,2]
[313797265,1707727848737,-500.0,0.00022615,2]
[313797266,1707727848747,-500.0,0.00022615,2]
[313797267,1707727848756,-500.0,0.00022615,2]
[313797268,1707727848765,-500.0,0.00022615,2]
[313797269,1707727848775,-500.0,0.00022615,2]
[313797270,1707727848784,-500.0,0.00022615,2]
[313797271,1707727848793,-500.0,0.00022615,2]
[313797272,1707727848802,-503.01,0.00022615,2]
[313797273,1707727848812,-500.0,0.00022615,2]
[313797274,1707727848821,-500.0,0.00022615,2]
[313797275,1707727848830,-500.0,0.00022615,2]
[313797276,1707727848840,-500.0,0.00022615,2]
[313797277,1707727848850,-557.83885856,0.00022615,2]
[313797278,1707727848860,-500.0,0.00022615,2]
[313797279,1707727848870,-500.0,0.00022615,2]
[313797280,1707727848880,-648.07016796,0.00022615,2]
[313797281,1707727848889,-500.0,0.00022615,2]
[313797282,1707727848898,-500.0,0.00022615,2]
[313797283,1707727848908,-500.0,0.00022615,2]
[313797284,1707727848917,-500.0,0.00022615,2]
[313797285,1707727848927,-996.35,0.00022615,2]
[313797286,1707727848936,-172.9660432,0.00022615,2]
[313797287,1707727848945,-500.0,0.00022615,2]
[313797288,1707727848955,-500.0,0.00022615,2]
[313797289,1707727848964,-512.8,0.00022615,2]
[313797290,1707727848974,-500.0,0.00022615,2]
[313797291,1707727848983,-1052.6,0.00022615,2]
[313797292,1707727848992,-500.0,0.00022615,2]
[313797293,1707727849002,-500.0,0.00022615,2]
[313797294,1707727849011,-500.0,0.00022615,2]
[313797295,1707727849020,-360.12623325,0.00022615,2]
[313797296,1707727849030,-500.0,0.00022615,2]
[313797297,1707727849039,-500.0,0.00022615,2]
[313797298,1707727849049,-500.0,0.00022615,2]
[313797299,1707727849058,-200.0,0.00022615,2]
[313797300,1707727849067,-175.84879118,0.00022615,2]
[313797301,1707727849078,-500.0,0.00022615,2]
[313797302,1707727849087,-250.0,0.00022615,2]
[313797303,1707727849097,-361.40910744,0.00022615,2]
[313797304,1707727849106,-500.0,0.00022615,2]
[313797305,1707727849116,-594.88451628,0.00022615,2]
[313797306,1707727849125,-546.6,0.00022615,2]
[313797307,1707727849135,-500.0,0.00022615,2]
[313797308,1707727849144,-500.0,0.00022615,2]
[313797309,1707727849154,-500.0,0.00022615,2]
[313797310,1707727849163,-500.0,0.00022615,2]
[313797311,1707727849172,-741.07,0.00022615,2]
[313797312,1707727849181,-500.0,0.00022615,2]
[313797313,1707727849191,-490.35137984,0.00022615,2]
[313797314,1707727849200,-1093.1,0.00022615,2]
[313797315,1707727849209,-500.0,0.00022615,2]
[313797316,1707727849218,-500.0,0.00022615,2]
[313797317,1707727849227,-335.92041082,0.00022615,2]
[313797318,1707727849237,-500.0,0.00022615,2]
[313797319,1707727849246,-500.0,0.00022615,2]
[313797320,1707727849256,-500.0,0.00022615,2]
[313797321,1707727849265,-500.0,0.00022615,2]
[313797322,1707727849275,-500.0,0.00022615,2]
[313797323,1707727849285,-500.0,0.00022615,2]
[313797324,1707727849294,-500.0,0.00022615,2]
[313797325,1707727849304,-500.0,0.00022615,2]
[313797326,1707727849313,-702.48,0.00022615,2]
[313797327,1707727849323,-500.0,0.00022615,2]
[313797328,1707727849333,-500.0,0.00022615,2]
[313797329,1707727849343,-500.0,0.00022615,2]
[313797330,1707727849354,-1102.3,0.00022615,2]
[313797331,1707727849364,-500.0,0.00022615,2]
[313797332,1707727849374,-500.0,0.00022615,2]
[313797333,1707727849384,-500.0,0.00022615,2]
[313797334,1707727849657,-1010.79,0.00022615,2]
[313797335,1707727849667,-635.95914053,0.00022615,2]
[313797336,1707727849676,-500.0,0.00022615,2]
[313797337,1707727849685,-500.0,0.00022615,2]